bitfinex/quotes_SOLUSD_20240809
["timestamp","ask_amount","ask_price","bid_price","bid_amount"]
[1723223039346,35.4623,152.62,152.57,6.5542]
[1723223039657,6.5539,152.58,152.53,6.68119]
[1723223039847,6.5539,152.58,152.54,0.25098]
[1723223040051,6.5546,152.57,152.54,0.12549]
[1723223040252,6.5546,152.57,152.53,6.556]
[1723223040468,28.91,152.58,152.53,6.556]
[1723223040757,28.91,152.58,152.52,0.12549]
[1723223040758,28.91,152.58,152.48,28.91]
[1723223040962,6.5547,152.57,152.52,6.5564]
[1723223041136,6.5547,152.57,152.48,28.91]
[1723223041137,6.5547,152.57,152.53,6.556]
[1723223041463,35.464,152.58,152.48,28.91]
[1723223042264,35.464,152.58,152.5,0.50196]
[1723223042639,35.464,152.58,152.53,6.5559]
[1723223043259,28.91,152.56,152.5,0.12549]
[1723223043465,28.91,152.54,152.49,6.5659]
[1723223043767,28.91,152.54,152.5,6.5572]
[1723223043968,45.12549,152.58,152.49,6.5659]
[1723223043969,35.4649,152.56,152.52,6.5564]
[1723223044540,28.91,152.54,152.45,21.5505]
[1723223044761,35.4666,152.52,152.46,6.5586]
[1723223044953,28.91,152.52,152.45,21.5505]
[1723223045159,28.91,152.54,152.51,6.5569]
[1723223045361,28.91,152.56,152.52,6.5564]
[1723223046246,35.464,152.58,152.53,6.5558]
[1723223046450,20.0,152.57,152.53,6.5558]
[1723223046851,28.91,152.56,152.51,6.5568]
[1723223047356,13.39038539,152.59,152.55,6.555]
[1723223047753,13.39038539,152.59,152.54,6.5555]
[1723223048467,6.5551,152.56,152.52,6.3194]
[1723223048762,6.5551,152.56,152.52,12.8758]
[1723223048966,6.5544,152.57,152.52,12.8758]
[1723223049370,6.5549,152.56,152.52,6.3194]
[1723223049575,6.5549,152.56,152.51,6.5568]
[1723223050652,6.5555,152.55,152.5,6.5573]
[1723223050859,28.91,152.54,152.49,6.5577]
[1723223051047,35.4657,152.54,152.49,6.5577]
[1723223051241,6.5561,152.53,152.49,6.5577]
[1723223051467,35.4657,152.54,152.49,6.5576]
[1723223051664,28.91,152.54,152.5,6.5573]
[1723223051870,28.91,152.54,152.51,6.5568]
[1723223052768,28.91,152.56,152.52,6.5561]
[1723223052947,6.5543,152.57,152.52,6.5561]
[1723223053159,20.0,152.56,152.52,6.5561]
[1723223053576,26.5548,152.56,152.52,6.5561]
[1723223054863,55.4648,152.56,152.52,6.5561]
[1723223055567,48.91,152.56,152.49,0.12549]
[1723223055776,6.5557,152.54,152.49,0.37647]
[1723223055977,6.5557,152.54,152.49,6.93417]
[1723223056273,6.5557,152.54,152.5,6.5573]
[1723223056609,28.91,152.54,152.48,13.0073]
[1723223056767,6.557,152.51,152.46,6.559]
[1723223056953,6.557,152.51,152.47,6.5586]
[1723223057577,6.5574,152.5,152.46,6.5589]
[1723223058268,6.557,152.51,152.46,6.5589]
[1723223058576,35.4666,152.52,152.47,6.5584]
[1723223060479,6.557,152.51,152.47,6.5584]
[1723223060954,28.91,152.52,152.45,6.5592]
[1723223061151,28.91,152.5,152.45,6.5592]
[1723223061365,28.91,152.5,152.44,6.4023]
[1723223061574,28.91,152.5,152.47,6.5585]
[1723223062689,35.4669,152.52,152.48,6.5582]
[1723223062983,28.91,152.52,152.48,6.5581]
[1723223063762,35.4665,152.52,152.48,6.5581]
[1723223063984,35.4648,152.56,152.49,1.31158428]
[1723223064185,35.4648,152.56,152.52,6.5564]
[1723223064378,28.91,152.56,152.52,6.5564]
[1723223064776,13.39208359,152.57,152.52,6.5563]
[1723223065086,13.39208359,152.57,152.5,0.12549]
[1723223065087,6.5549,152.56,152.5,0.12549]
[1723223065270,6.5555,152.55,152.5,6.68279]
[1723223065462,28.91,152.56,152.49,0.12549]
[1723223065665,6.557,152.51,152.47,6.5585]
[1723223065879,6.5574,152.5,152.46,6.559]
[1723223066963,35.4666,152.52,152.47,6.5585]
[1723223067485,35.4666,152.52,152.44,22.0744]
[1723223067486,28.91,152.52,152.5,6.5572]
[1723223067685,28.91,152.54,152.5,6.5572]
[1723223067861,6.5553,152.55,152.51,6.5568]
[1723223068064,13.39218359,152.57,152.52,6.5561]
[1723223068302,26.5549,152.56,152.51,6.5568]
[1723223068985,6.5552,152.55,152.5,6.5573]
[1723223069180,6.5557,152.54,152.5,6.5573]
[1723223069568,6.5562,152.53,152.49,0.12549]
[1723223069886,28.91,152.54,152.5,6.5573]
[1723223070674,28.91,152.54,152.49,6.5576]
[1723223070877,28.91,152.54,152.48,6.5581]
[1723223071083,28.91,152.54,152.49,6.5576]
[1723223071084,35.4659,152.54,152.49,6.5576]
[1723223071392,6.5561,152.53,152.49,6.5576]
[1723223074967,35.4657,152.54,152.49,6.5576]
[1723223076296,35.4657,152.54,152.45,0.12549]
[1723223076481,28.91,152.54,152.5,6.5573]
[1723223076801,28.91,152.54,152.45,45.50196]
[1723223076802,6.83955034,152.55,152.45,45.50196]
[1723223076976,13.39505034,152.55,152.5,6.5572]
[1723223077177,6.83955034,152.55,152.52,6.5565]
[1723223077603,6.5554,152.55,152.51,6.5568]
[1723223077987,28.91,152.58,152.51,6.3601]
[1723223078187,28.91,152.58,152.52,6.68189]
[1723223078188,26.5547,152.57,152.52,6.68189]
[1723223078487,6.5549,152.56,152.52,6.68189]
[1723223079178,26.5544,152.57,152.52,6.68189]
[1723223079396,6.5547,152.56,152.52,6.68189]
[1723223079679,20.0,152.57,152.53,6.5559]
[1723223080789,20.0,152.58,152.53,6.5559]
[1723223081096,6.5543,152.57,152.53,6.5559]
[1723223081299,6.5543,152.57,152.52,6.68179]
[1723223081896,6.5548,152.56,152.52,6.68179]
[1723223082604,6.5562,152.53,152.48,6.5579]
[1723223082975,6.5562,152.53,152.47,6.1768]
[1723223083303,6.557,152.51,152.47,12.7354]
[1723223083483,6.5573,152.5,152.47,6.1768]
[1723223083689,35.4673,152.5,152.47,6.1768]
[1723223083982,45.2976,152.56,152.47,6.1768]
[1723223083983,35.4665,152.52,152.47,12.7354]
[1723223084199,28.91,152.54,152.49,6.5577]
[1723223084375,35.4659,152.54,152.49,6.5577]
[1723223084574,26.5561,152.53,152.48,6.558]
[1723223084807,28.91,152.52,152.47,12.7353]
[1723223085103,28.91,152.52,152.47,6.1768]
[1723223085484,6.5569,152.51,152.47,12.7353]
[1723223086406,28.91,152.52,152.48,6.558]
[1723223086579,28.91,152.52,152.49,0.12549]
[1723223086787,28.91,152.52,152.47,12.7353]
[1723223087308,6.5569,152.51,152.47,6.1768]
[1723223088797,28.91,152.52,152.47,6.1768]
[1723223088977,20.8168031,152.71,152.49,0.12549]
[1723223088978,28.91,152.54,152.49,0.12549]
[1723223089181,35.4651,152.56,152.51,6.5569]
[1723223089406,42.30583073,152.56,152.51,6.5569]
[1723223089619,26.5552,152.55,152.51,6.5569]
[1723223089807,26.5552,152.55,152.49,0.12549]
[1723223089808,6.84073073,152.56,152.52,6.5562]
[1723223089993,6.5548,152.56,152.51,6.5568]
[1723223090201,6.5548,152.56,152.52,0.12549]
[1723223091123,6.5552,152.55,152.52,0.12549]
[1723223091333,6.5558,152.54,152.5,6.68269]
[1723223091629,6.5558,152.54,152.51,0.12549]
[1723223092025,6.5558,152.54,152.5,0.25098]
[1723223092596,6.5561,152.53,152.48,0.12549]
[1723223092920,6.5561,152.53,152.48,0.37647]
[1723223093310,6.5566,152.52,152.48,6.80908]
[1723223093706,28.91,152.54,152.49,6.5578]
[1723223093707,6.5561,152.53,152.49,6.5578]
[1723223094726,6.5561,152.53,152.48,6.80918]
[1723223095112,6.5561,152.53,152.49,6.5577]
[1723223095428,28.91,152.54,152.51,6.5569]
[1723223095623,6.5552,152.55,152.5,6.5572]
[1723223096913,6.5558,152.54,152.5,6.5572]
[1723223097117,6.5553,152.55,152.5,6.5572]
[1723223098332,6.5556,152.54,152.5,6.5572]
[1723223100527,6.5562,152.53,152.49,0.12549]
[1723223100833,6.5566,152.52,152.49,0.12549]
[1723223101008,6.5569,152.51,152.47,12.7353]
[1723223101210,6.5565,152.53,152.48,6.5581]
[1723223101415,6.84047303,152.56,152.48,28.91]
[1723223101610,6.84047303,152.56,152.52,6.5562]
[1723223101937,6.5553,152.55,152.5,6.5572]
[1723223102312,6.5557,152.54,152.51,0.12549]
[1723223102508,6.5557,152.54,152.48,6.5582]
[1723223102509,28.91,152.54,152.48,6.5582]
[1723223102710,35.4668,152.52,152.47,12.7351]
[1723223103130,35.4668,152.52,152.48,6.5581]
[1723223103919,6.5568,152.52,152.48,6.5581]
[1723223104118,6.5562,152.53,152.48,6.5581]
[1723223105213,16.3853,152.58,152.49,45.12549]
[1723223105214,28.91,152.58,152.49,45.12549]
[1723223105525,28.91,152.58,152.54,6.5553]
[1723223105526,1.14015758,152.58,152.54,6.5553]
[1723223105824,6.554,152.58,152.53,6.5559]
[1723223106020,7.69410732,152.58,152.53,6.5559]
[1723223106445,6.5544,152.57,152.53,6.5559]
[1723223106739,30.05010732,152.58,152.52,6.5564]
[1723223106740,6.5548,152.56,152.52,6.5564]
[1723223107037,30.05010732,152.58,152.53,6.556]
[1723223107038,6.5544,152.57,152.53,6.556]
[1723223107340,6.5544,152.57,152.52,0.12549]
[1723223107527,6.5544,152.57,152.52,0.25098]
[1723223107725,1.14010732,152.58,152.53,0.12549]
[1723223108031,6.5522,152.62,152.57,6.554]
[1723223108214,1.13984807,152.62,152.55,0.12549]
[1723223108417,6.5533,152.6,152.55,0.12549]
[1723223108636,6.5535,152.59,152.55,6.5551]
[1723223109121,6.5547,152.57,152.54,6.0332]
[1723223109631,6.5548,152.56,152.52,6.68189]
[1723223109820,6.5548,152.56,152.51,22.2722]
[1723223110643,6.5552,152.55,152.51,22.2722]
[1723223110826,35.4652,152.55,152.51,15.7154]
[1723223111027,35.4652,152.55,152.51,22.2722]
[1723223111415,35.4652,152.55,152.51,6.5568]
[1723223111617,35.4652,152.55,152.5,13.2033]
[1723223112223,28.91,152.59,152.51,0.25098]
[1723223112440,6.554,152.58,152.54,6.5556]
[1723223112822,6.554,152.58,152.51,0.25098]
[1723223112823,35.4635,152.59,152.55,6.5551]
[1723223113020,28.91,152.59,152.56,6.5547]
[1723223113349,6.5523,152.62,152.57,6.5542]
[1723223113552,21.90512018,152.64,152.56,6.5544]
[1723223113553,35.4628,152.61,152.56,6.5544]
[1723223113845,28.91,152.61,152.57,6.5543]
[1723223114416,35.4627,152.61,152.57,6.5543]
[1723223114943,28.91,152.63,152.58,6.5538]
[1723223115249,28.91,152.63,152.59,6.5533]
[1723223115449,35.4619,152.63,152.59,6.5533]
[1723223115915,35.4619,152.63,152.58,6.5538]
[1723223116340,35.4619,152.63,152.59,6.5533]
[1723223116552,35.4619,152.63,152.58,6.5538]
[1723223117051,6.5523,152.62,152.58,6.5538]
[1723223117440,28.91,152.59,152.54,16.4874]
[1723223117646,6.554,152.58,152.53,6.5559]
[1723223117828,35.4635,152.59,152.54,6.5555]
[1723223118142,28.91,152.59,152.56,6.5547]
[1723223118553,35.4635,152.59,152.52,6.6521]
[1723223119161,28.91,152.59,152.55,6.5551]
[1723223119349,28.91,152.59,152.56,6.5547]
[1723223119524,35.4635,152.59,152.55,6.5551]
[1723223120127,28.91,152.57,152.52,6.6521]
[1723223120330,35.4647,152.57,152.52,13.2082]
[1723223120543,28.91,152.53,152.51,6.5568]
[1723223121657,28.91,152.55,152.48,6.2747]
[1723223121961,28.91,152.57,152.54,6.5556]
[1723223122157,35.4645,152.57,152.48,6.2747]
[1723223122455,28.91,152.55,152.48,6.2747]
[1723223122639,35.4654,152.55,152.5,6.5572]
[1723223122841,35.4654,152.55,152.51,6.5569]
[1723223123055,35.4654,152.55,152.5,6.5572]
[1723223123251,28.91,152.55,152.51,6.5566]
[1723223123427,35.4653,152.55,152.51,6.5566]
[1723223123629,35.4653,152.55,152.5,6.5572]
[1723223123960,6.556,152.53,152.49,6.5577]
[1723223124454,6.556,152.53,152.46,15.5466]
[1723223124455,35.466,152.53,152.46,15.5466]
[1723223124832,28.91,152.51,152.44,6.5294]
[1723223125034,35.4673,152.51,152.46,6.5587]
[1723223125243,28.91,152.51,152.47,6.5585]
[1723223125451,35.4671,152.51,152.47,6.5585]
[1723223126452,28.91,152.49,152.45,6.5594]
[1723223126656,28.91,152.47,152.4,6.4082]
[1723223126832,35.4696,152.45,152.4,12.9695]
[1723223127037,35.4696,152.45,152.4,6.5613]
[1723223127343,35.4707,152.43,152.36,6.4082]
[1723223127546,28.91,152.43,152.36,6.4082]
[1723223127737,28.91,152.45,152.36,6.4082]
[1723223127951,16.4438,152.47,152.38,28.91]
[1723223128148,20.12549,152.52,152.36,6.4082]
[1723223128149,45.3538,152.51,152.4,28.91]
[1723223128344,45.3538,152.51,152.42,28.91]
[1723223128546,16.4438,152.51,152.43,7.6064252]
[1723223128774,6.5561,152.53,152.48,6.5582]
[1723223129472,52.20784795,152.55,152.46,28.91]
[1723223129762,35.4643,152.57,152.52,6.5564]
[1723223130147,6.5548,152.56,152.52,6.5564]
[1723223130465,6.5548,152.56,152.51,6.5568]
[1723223130974,35.4645,152.57,152.52,6.5561]
[1723223131179,35.4645,152.57,152.51,6.5568]
[1723223131180,6.5548,152.56,152.51,6.5568]
[1723223131465,6.5552,152.55,152.51,6.5568]
[1723223131967,37.18,152.58,152.48,37.18]
[1723223132268,22.67736748,152.59,152.48,37.18]
[1723223132269,26.5543,152.57,152.52,6.5564]
[1723223132470,6.5548,152.56,152.51,6.5568]
[1723223132640,6.5548,152.56,152.49,0.25098]
[1723223132641,6.5552,152.55,152.5,6.5572]
[1723223132969,6.5556,152.54,152.49,6.5577]
[1723223133143,6.5561,152.53,152.48,6.5581]
[1723223134667,6.5565,152.52,152.47,6.5585]
[1723223134870,6.5569,152.51,152.47,6.5585]
[1723223135041,6.5565,152.52,152.47,6.5585]
[1723223135242,37.18,152.54,152.44,37.18]
[1723223135663,37.18,152.54,152.45,0.25098]
[1723223136145,6.5552,152.55,152.5,6.5573]
[1723223136355,20.0,152.54,152.5,6.5573]
[1723223136538,26.5558,152.54,152.49,6.5576]
[1723223136743,26.5558,152.54,152.5,6.5573]
[1723223136938,20.0,152.54,152.5,6.5573]
[1723223137169,26.5557,152.54,152.5,6.5573]
[1723223137539,20.0,152.54,152.5,6.5573]
[1723223137740,37.18,152.58,152.47,0.12549]
[1723223137942,6.5539,152.58,152.53,6.5556]
[1723223138144,37.18,152.6,152.49,6.42609]
[1723223138346,29.23086748,152.59,152.54,6.5555]
[1723223138570,15.8373,152.59,152.52,6.5563]
[1723223138777,6.5548,152.56,152.52,6.5563]
[1723223138951,37.18,152.58,152.52,6.5563]
[1723223139348,43.4638,152.58,152.46,37.18]
[1723223139572,43.4638,152.58,152.45,6.6234]
[1723223139573,37.18,152.56,152.45,6.6234]
[1723223139751,20.0,152.57,152.47,6.5585]
[1723223139752,6.5566,152.52,152.47,6.5585]
[1723223140964,6.5566,152.52,152.48,6.5581]
[1723223141172,6.5561,152.53,152.48,6.5581]
[1723223142262,6.5565,152.52,152.48,6.5581]
[1723223143061,6.5565,152.52,152.45,6.6234]
[1723223143267,6.5565,152.52,152.48,6.5581]
[1723223143774,6.5565,152.52,152.47,6.5585]
[1723223144675,6.5565,152.52,152.48,6.5582]
[1723223145178,6.5565,152.52,152.47,6.5585]
[1723223146277,6.5569,152.51,152.47,6.5585]
[1723223147273,52.5743,152.52,152.46,6.559]
[1723223147481,45.0,152.51,152.46,6.559]
[1723223147678,52.5743,152.52,152.42,0.12549]
[1723223147847,52.5743,152.52,152.48,6.5579]
[1723223147848,15.3943,152.52,152.48,6.5579]
[1723223148458,15.3943,152.52,152.49,6.5576]
[1723223149953,21.9508,152.52,152.44,0.12549]
[1723223150277,6.5586,152.48,152.41,6.0561]
[1723223151188,6.5579,152.49,152.44,6.5599]
[1723223151481,6.5582,152.48,152.44,6.5599]
[1723223151882,6.5579,152.49,152.44,6.5599]
[1723223152185,6.5579,152.49,152.41,6.0561]
[1723223152186,6.5579,152.49,152.45,6.5594]
[1723223152384,43.7374,152.5,152.45,6.5594]
[1723223153058,37.18,152.5,152.41,6.0561]
[1723223153384,45.12549,152.51,152.41,6.0561]
[1723223153385,6.5587,152.47,152.41,6.0561]
[1723223153762,35.5187,152.47,152.41,6.0561]
[1723223154081,28.96,152.47,152.43,6.5603]
[1723223154265,28.96,152.47,152.44,6.5598]
[1723223154462,93.96,152.49,152.45,6.5594]
[1723223154674,48.96,152.49,152.45,6.5594]
[1723223154861,48.96,152.49,152.44,6.5598]
[1723223155063,55.5178,152.49,152.44,6.5598]
[1723223155277,6.5583,152.48,152.44,6.5598]
[1723223155587,48.96,152.49,152.41,6.0561]
[1723223155885,6.5583,152.48,152.44,6.5598]
[1723223156078,48.96,152.49,152.46,6.559]
[1723223156079,20.0,152.49,152.46,6.559]
[1723223156260,20.12549,152.5,152.47,6.5585]
[1723223156461,20.0,152.5,152.46,6.5589]
[1723223156871,20.0,152.5,152.47,6.5586]
[1723223157387,15.3943,152.52,152.48,6.5581]
[1723223157572,15.3943,152.52,152.44,1.31173572]
[1723223157883,15.3943,152.52,152.45,0.12549]
[1723223158474,21.9509,152.52,152.47,6.5584]
[1723223159396,6.557,152.51,152.47,6.5584]
[1723223159703,6.557,152.51,152.46,6.5589]
[1723223160369,6.5574,152.5,152.46,6.5589]
[1723223161092,6.5574,152.5,152.45,6.5594]
[1723223162292,15.3943,152.52,152.41,35.0161]
[1723223162293,6.5578,152.49,152.41,35.0161]
[1723223162463,6.5583,152.48,152.44,6.5598]
[1723223162669,6.5579,152.49,152.44,6.5598]
[1723223162864,28.96,152.51,152.44,6.5598]
[1723223163180,6.5579,152.49,152.44,6.5598]
[1723223163384,6.5579,152.49,152.45,6.5594]
[1723223163585,6.5574,152.5,152.45,6.5594]
[1723223163789,6.5574,152.5,152.46,6.559]
[1723223164286,6.5574,152.5,152.45,6.5594]
[1723223164693,35.517,152.51,152.46,6.5588]
[1723223164865,35.517,152.51,152.42,0.12549]
[1723223165067,35.517,152.51,152.42,45.50196]
[1723223166073,35.517,152.51,152.47,6.5585]
[1723223166605,6.5578,152.49,152.42,0.12549]
[1723223166802,6.5583,152.48,152.44,6.5596]
[1723223166993,6.5583,152.48,152.4,16.4434]
[1723223166994,6.5596,152.45,152.4,6.5615]
[1723223167195,6.5596,152.45,152.41,6.5611]
[1723223167497,6.5591,152.46,152.41,6.5611]
[1723223168496,6.5595,152.45,152.41,6.5611]
[1723223168665,6.5609,152.42,152.37,6.5626]
[1723223168868,6.5609,152.42,152.38,6.5624]
[1723223169093,28.96,152.43,152.37,6.5629]
[1723223169094,6.5613,152.41,152.37,6.5629]
[1723223169688,6.5613,152.41,152.33,6.0444]
[1723223169892,28.96,152.41,152.36,6.5633]
[1723223170591,0.12549,152.44,152.38,6.5625]
[1723223170592,6.5608,152.42,152.38,6.5625]
[1723223170894,6.5608,152.42,152.37,6.5629]
[1723223171995,6.5613,152.41,152.36,6.5633]
[1723223172175,35.5205,152.43,152.33,6.0444]
[1723223172373,51.5608,152.42,152.38,6.5625]
[1723223172898,51.5608,152.42,152.37,6.5628]
[1723223173405,0.12549,152.44,152.34,29.08549]
[1723223173700,65.12549,152.44,152.39,6.5619]
[1723223174082,65.12549,152.44,152.34,30.39803167]
[1723223174083,6.5604,152.43,152.35,0.12549]
[1723223174280,26.56,152.44,152.39,6.562]
[1723223174792,6.5605,152.43,152.38,6.5624]
[1723223175103,6.5608,152.42,152.38,6.5624]
[1723223175404,6.5613,152.41,152.36,6.5632]
[1723223175696,6.5613,152.41,152.37,6.5628]
[1723223176480,6.5613,152.41,152.34,29.08549]
[1723223176481,0.12549,152.4,152.34,6.5642]
[1723223176712,45.12549,152.4,152.34,6.5642]
[1723223177174,20.0,152.44,152.33,6.0444]
[1723223177175,18.94009002,152.46,152.33,6.0444]
[1723223177380,18.94009002,152.46,152.33,35.0044]
[1723223177381,6.5609,152.42,152.33,35.0044]
[1723223177595,28.96,152.43,152.33,35.0044]
[1723223177907,6.5604,152.43,152.38,6.5624]
[1723223178393,51.56,152.44,152.35,28.96]
[1723223178595,29.33000156,152.45,152.37,28.96]
[1723223178786,15.6183,152.49,152.4,6.0275]
[1723223178971,22.1761,152.49,152.44,6.5595]
[1723223179173,6.5574,152.5,152.45,6.5594]
[1723223179381,6.5565,152.52,152.48,6.5581]
[1723223179789,15.6183,152.53,152.49,6.5577]
[1723223180001,6.83078408,152.54,152.46,37.19]
[1723223180192,6.5556,152.54,152.49,6.5577]
[1723223180703,6.5556,152.54,152.41,1.31176341]
[1723223180704,37.19,152.54,152.42,37.19]
[1723223180902,16.0079,152.51,152.41,0.12549]
[1723223181103,6.559,152.47,152.42,6.5608]
[1723223181399,6.5583,152.48,152.43,6.5603]
[1723223181986,6.5586,152.47,152.42,6.5607]
[1723223182185,6.5591,152.46,152.41,6.5611]
[1723223182384,6.5587,152.47,152.42,6.5607]
[1723223182704,0.12549,152.47,152.41,6.5611]
[1723223182907,0.25098,152.47,152.41,6.5611]
[1723223183077,45.25098,152.47,152.41,6.5611]
[1723223183277,37.19,152.48,152.43,6.5603]
[1723223183475,0.12549,152.49,152.43,6.5603]
[1723223183678,65.25098,152.49,152.43,6.5603]
[1723223183887,6.5583,152.48,152.43,6.5603]
[1723223184800,6.5587,152.47,152.43,6.5603]
[1723223184983,6.5587,152.47,152.4,6.0275]
[1723223185189,6.5587,152.47,152.42,6.5607]
[1723223185508,6.5591,152.46,152.42,6.5607]
[1723223185802,6.5587,152.47,152.42,6.5607]
[1723223186981,6.5587,152.47,152.43,6.5603]
[1723223187180,6.5583,152.48,152.43,6.5603]
[1723223187380,6.5587,152.47,152.43,6.5603]
[1723223187596,6.5582,152.48,152.43,6.5603]
[1723223188201,71.68329,152.49,152.44,6.5598]
[1723223188793,6.5583,152.48,152.44,6.5598]
[1723223189200,6.5586,152.47,152.4,6.0275]
[1723223189386,6.5586,152.47,152.42,6.5607]
[1723223190002,6.5586,152.47,152.43,6.5603]
[1723223190304,71.68329,152.49,152.44,6.5598]
[1723223190495,26.5578,152.49,152.44,6.5598]
[1723223192287,6.5582,152.48,152.44,6.5598]
[1723223192494,6.5582,152.48,152.43,6.5602]
[1723223192892,6.5582,152.48,152.44,6.5599]
[1723223193805,26.5579,152.49,152.44,6.5599]
[1723223194111,26.5579,152.49,152.45,6.5594]
[1723223197109,26.5579,152.49,152.44,6.5599]
[1723223197316,6.5582,152.48,152.44,6.5599]
[1723223197688,6.5582,152.48,152.43,6.5602]
[1723223200587,6.5591,152.46,152.41,6.5609]
[1723223200885,6.5595,152.45,152.41,6.5609]
[1723223201089,6.5592,152.46,152.42,6.5606]
[1723223201308,6.5587,152.47,152.42,6.5606]
[1723223201507,6.5587,152.47,152.43,6.5602]
[1723223202094,6.5587,152.47,152.42,6.5607]
[1723223202489,6.5602,152.44,152.4,6.0275]
[1723223202709,6.5606,152.43,152.38,6.5622]
[1723223203127,6.56,152.44,152.39,6.5619]
[1723223203623,6.56,152.44,152.4,6.5616]
[1723223203818,28.95,152.47,152.41,6.5611]
[1723223204110,35.5087,152.47,152.42,6.5607]
[1723223204308,20.0,152.46,152.42,6.5607]
[1723223204819,6.82654605,152.49,152.36,6.1904]
[1723223204820,6.82654605,152.49,152.45,6.5591]
[1723223205007,6.5574,152.5,152.45,6.5591]
[1723223205194,6.5579,152.49,152.44,6.5598]
[1723223205924,6.5579,152.49,152.45,6.5593]
[1723223206214,51.78383843,152.51,152.45,6.5593]
[1723223206215,6.5574,152.5,152.45,6.5593]
[1723223206620,20.0,152.49,152.45,6.5593]
[1723223206823,6.82593843,152.51,152.44,29.07549]
[1723223207030,6.556,152.54,152.49,6.5578]
[1723223208214,26.5561,152.53,152.49,6.5578]
[1723223208527,16.2554,152.55,152.48,28.95]
[1723223208723,6.83198622,152.56,152.49,7.62736412]
[1723223209023,6.554,152.58,152.53,6.556]
[1723223209519,47.85267184,152.59,152.51,6.5567]
[1723223209904,6.5544,152.57,152.52,6.5563]
[1723223211229,6.5549,152.56,152.51,6.5568]
[1723223211524,6.5544,152.57,152.52,6.5563]
[1723223212611,6.554,152.58,152.53,6.5558]
[1723223213720,6.5543,152.57,152.52,6.5564]
[1723223214527,6.5543,152.57,152.53,6.5559]
[1723223215124,6.5543,152.57,152.52,6.5564]
[1723223215430,6.5549,152.56,152.5,28.95]
[1723223215601,6.5549,152.56,152.52,6.5565]
[1723223215803,6.5544,152.57,152.52,6.5565]
[1723223216925,28.95,152.59,152.51,0.12549]
[1723223217094,6.5548,152.56,152.52,6.5563]
[1723223217299,6.5544,152.57,152.52,6.5563]
[1723223217934,28.95,152.59,152.51,0.12549]
[1723223218105,28.95,152.55,152.49,6.1904]
[1723223218304,28.95,152.53,152.44,28.95]
[1723223218526,28.95,152.53,152.35,6.83081821]
[1723223218527,6.5574,152.5,152.45,28.8571]
[1723223219023,6.5574,152.5,152.46,6.559]
[1723223219217,28.95,152.53,152.45,28.8571]
[1723223219523,6.5573,152.5,152.45,13.1898]
[1723223219698,48.95,152.53,152.45,6.6304]
[1723223219699,28.95,152.53,152.45,6.6304]
[1723223219903,20.0,152.52,152.45,6.6304]
[1723223220506,6.557,152.51,152.46,6.5587]
[1723223220903,20.0,152.52,152.45,13.1898]
[1723223221104,20.0,152.52,152.43,6.56]
[1723223221105,74.07549,152.51,152.43,6.56]
[1723223221505,28.95,152.49,152.43,6.56]
[1723223221704,6.5587,152.47,152.41,22.5485]
[1723223221907,6.5583,152.48,152.43,6.5603]
[1723223222623,6.5577,152.5,152.45,6.5594]
[1723223223007,6.5578,152.49,152.45,6.5594]